fUST/lending_fUST_20240225
["ID","MTS","AMOUNT","RATE_DAILY","PERIOD"]
[315102149,1708819842471,-500.0,0.00019555,2]
[315102150,1708819842480,-500.0,0.00019555,2]
[315102151,1708819842490,-500.0,0.00019555,2]
[315102152,1708819842500,-1318.69,0.00019555,2]
[315102153,1708819842509,-684.62,0.00019555,2]
[315102155,1708819842519,-500.0,0.00019555,2]
[315102156,1708819842529,-500.0,0.00019555,2]
[315102157,1708819842537,-500.0,0.00019555,2]
[315102158,1708819842547,-1262.31,0.00019555,2]
[315102160,1708819842555,-500.0,0.00019555,2]
[315102161,1708819842564,-500.0,0.00019555,2]
[315102162,1708819842574,-500.0,0.00019555,2]
[315102164,1708819842583,-282.88303232,0.00019555,2]
[315102166,1708819842592,-234.0871682,0.000196,2]
[315102168,1708819842602,-306.0,0.000196,2]
[315102171,1708819842611,-153.0,0.000196,2]
[315102175,1708819842621,-155.0617264,0.000196,2]
[315102179,1708819842630,-295.0964825,0.000196,2]
[315102181,1708819842638,-153.0,0.000196,2]
[315102182,1708819842647,-306.9194835,0.000196,2]
[315102183,1708819842656,-166.666666,0.00019627,2]
[315102184,1708819842666,-200.5294442,0.000197,2]
[315102185,1708819842675,-823.4,0.00019799,2]
[315102186,1708819842684,-497.28656827,0.00019799,2]
[315102187,1708819842693,-200.5294442,0.000198,2]
[315102188,1708819842702,-500.0,0.00019827,2]
[315102189,1708819842710,-500.0,0.00019827,2]
[315102190,1708819842719,-703.36,0.00019827,2]
[315102191,1708819842727,-6008.72,0.00019827,2]
[315102193,1708819842736,-500.0,0.00019827,2]
[315102195,1708819842745,-440.11976334,0.00019827,2]
[315102196,1708819842755,-500.0,0.00019828,2]
[315102197,1708819842764,-500.0,0.00019828,2]
[315102198,1708819842773,-500.0,0.00019828,2]
[315102199,1708819842783,-501.85083767,0.00019828,2]
[315102200,1708819842793,-500.0,0.00019828,2]
[315102201,1708819842802,-500.0,0.00019828,2]
[315102202,1708819842812,-500.0,0.00019828,2]
[315102203,1708819842821,-500.0,0.00019828,2]
[315102204,1708819842831,-501.04972736,0.00019828,2]
[315102205,1708819842840,-500.0,0.00019828,2]
[315102206,1708819842849,-1201.84,0.00019828,2]
[315102207,1708819842858,-500.0,0.00019828,2]
[315102208,1708819842867,-501.25023183,0.00019828,2]
[315102209,1708819842877,-731.83,0.00019828,2]
[315102210,1708819842886,-839.66,0.00019828,2]
[315102212,1708819842895,-500.0,0.00019828,2]
[315102214,1708819842905,-714.66,0.00019828,2]
[315102215,1708819842915,-500.0,0.00019828,2]
[315102216,1708819842924,-500.0,0.00019828,2]
[315102217,1708819842933,-500.0,0.00019828,2]
[315102218,1708819842941,-1049.41,0.00019828,2]
[315102219,1708819842950,-4945.52,0.00019828,2]
[315102220,1708819842958,-871.67,0.00019828,2]
[315102221,1708819842966,-500.0,0.00019828,2]
[315102222,1708819842975,-1405.31,0.00019828,2]
[315102223,1708819842984,-500.0,0.00019828,2]
[315102224,1708819842993,-500.0,0.00019828,2]
[315102225,1708819843002,-500.0,0.00019828,2]
[315102226,1708819843012,-500.0,0.00019828,2]
[315102227,1708819843021,-4040.63,0.00019828,2]
[315102228,1708819843030,-500.0,0.00019828,2]
[315102229,1708819843039,-502.20275581,0.00019828,2]
[315102230,1708819843050,-500.0,0.00019828,2]
[315102231,1708819843059,-492.29549158,0.00019828,2]
[315102232,1708819843069,-500.0,0.00019828,2]
[315102233,1708819843079,-500.0,0.00019828,2]
[315102234,1708819843089,-1567.66,0.00019828,2]
[315102235,1708819843099,-500.0,0.00019828,2]
[315102236,1708819843110,-500.0,0.00019828,2]
[315102237,1708819843120,-500.0,0.00019828,2]
[315102238,1708819843130,-526.54483055,0.00019828,2]
[315102239,1708819843143,-500.0,0.00019828,2]
[315102240,1708819843154,-500.0,0.00019828,2]
[315102241,1708819843163,-500.0,0.00019828,2]
[315102242,1708819843174,-500.0,0.00019828,2]
[315102243,1708819843186,-576.09,0.00019828,2]
[315102244,1708819843197,-500.0,0.00019828,2]
[315102245,1708819843207,-500.96626582,0.00019828,2]
[315102246,1708819843218,-500.0,0.00019828,2]
[315102247,1708819843230,-264.45911542,0.00019828,2]
[315102248,1708819843239,-1394.27,0.00019828,2]
[315102249,1708819843249,-500.04057493,0.00019828,2]
[315102250,1708819843258,-229.85488048,0.00019828,2]
[315102251,1708819843268,-749.48,0.00019828,2]
[315102252,1708819843279,-500.0,0.00019828,2]
[315102253,1708819843289,-3045.59,0.00019828,2]
[315102254,1708819843298,-955.77,0.00019828,2]
[315102255,1708819843309,-500.0,0.00019828,2]
[315102256,1708819843318,-500.0,0.00019828,2]
[315102257,1708819843328,-500.0,0.00019828,2]
[315102258,1708819843338,-5067.8,0.00019828,2]
[315102259,1708819843347,-500.0,0.00019828,2]
[315102260,1708819843357,-500.0,0.00019828,2]
[315102261,1708819843367,-704.88,0.00019828,2]
[315102262,1708819843378,-1296.35,0.00019828,2]
[315102263,1708819843387,-500.0,0.00019828,2]
[315102264,1708819843397,-500.0,0.00019829,2]
[315102265,1708819843407,-500.0,0.00019829,2]
[315102266,1708819843416,-500.0,0.00019829,2]
[315102267,1708819843426,-500.0,0.00019829,2]
[315102268,1708819843435,-500.0,0.00019829,2]
[315102269,1708819843445,-500.0,0.00019829,2]
[315102270,1708819843455,-500.0,0.00019829,2]
[315102271,1708819843464,-500.0,0.00019829,2]
[315102272,1708819843474,-500.0,0.00019829,2]
[315102273,1708819843483,-500.0,0.00019829,2]
[315102274,1708819843493,-500.0,0.00019829,2]
[315102275,1708819843503,-500.0,0.00019829,2]
[315102276,1708819843512,-500.0,0.00019829,2]
[315102277,1708819843521,-325.98829797,0.00019829,2]
[315102278,1708819843532,-500.0,0.00019829,2]
[315102279,1708819843541,-500.0,0.00019829,2]
[315102280,1708819843550,-500.0,0.00019829,2]
[315102281,1708819843559,-333.88,0.00019829,2]
[315102282,1708819843569,-500.0,0.00019829,2]
[315102283,1708819843578,-500.0,0.00019829,2]
[315102284,1708819843586,-500.0,0.00019829,2]
[315102285,1708819843595,-500.0,0.00019829,2]
[315102286,1708819843604,-500.0,0.00019829,2]
[315102287,1708819843613,-500.0,0.00019829,2]
[315102288,1708819843622,-501.07745012,0.00019829,2]
[315102289,1708819843632,-500.0,0.00019829,2]
[315102290,1708819843642,-500.0,0.00019829,2]
[315102291,1708819843650,-179.23,0.00019829,2]
[315102292,1708819843659,-239.91,0.00019829,2]
[315102293,1708819843668,-823.4,0.00019829,2]
[315102294,1708819843677,-500.0,0.00019829,2]
[315102295,1708819843686,-1318.69,0.00019829,2]
[315102296,1708819843694,-684.62,0.00019829,2]
[315102297,1708819843704,-500.0,0.00019829,2]
[315102298,1708819843712,-1262.31,0.00019829,2]
[315102299,1708819843721,-500.0,0.00019829,2]
[315102300,1708819843731,-153.0,0.00019836,2]
[315102301,1708819843740,-153.0,0.00019836,2]
[315102302,1708819843750,-153.0,0.00019836,2]
[315102303,1708819843759,-153.0,0.00019836,2]
[315102304,1708819843768,-153.0,0.00019836,2]
[315102305,1708819843777,-153.0,0.00019836,2]
[315102306,1708819843786,-153.0,0.00019836,2]
[315102307,1708819843796,-41133.41772646,0.0001985,2]
[315102308,1708819843806,-153.0,0.0001989,2]
[315102309,1708819843815,-153.0,0.0001989,2]
[315102310,1708819843824,-386.1233369,0.0001989,2]
[315102311,1708819843833,-421.2025703,0.0001989,2]
[315102312,1708819843842,-153.0,0.0001989,2]
[315102313,1708819843852,-500.0,0.00019897,2]
[315102314,1708819843861,-500.0,0.00019897,2]
[315102315,1708819843869,-500.0,0.00019897,2]
[315102316,1708819843879,-500.0,0.00019897,2]
[315102317,1708819843888,-500.0,0.00019898,2]
[315102318,1708819843897,-500.0,0.00019898,2]
[315102319,1708819843906,-999.35260013,0.00019898,2]
[315102320,1708819843915,-823.4,0.00019898,2]
[315102321,1708819843924,-107816.92932919,0.00019899,2]
[315102322,1708819843933,-500.0,0.00019899,2]
[315102323,1708819843942,-500.0,0.00019899,2]
[315102324,1708819843952,-500.0,0.00019899,2]
[315102325,1708819843961,-500.0,0.00019899,2]
[315102326,1708819843970,-500.0,0.00019899,2]
[315102327,1708819843979,-500.0,0.00019899,2]
[315102328,1708819843989,-225.36992675,0.00019899,2]
[315102329,1708819843998,-396.59778107,0.00019899,2]
[315102330,1708819844008,-279.3313356,0.00019899,2]
[315102331,1708819844018,-500.0,0.00019899,2]
[315102332,1708819844027,-500.0,0.00019899,2]
[315102333,1708819844038,-1518.48968101,0.00019899,2]
[315102334,1708819844047,-823.4,0.00019899,2]
[315102335,1708819844056,-823.4,0.00019899,2]
[315102336,1708819844065,-823.4,0.00019899,2]
[315102337,1708819844075,-200.5294442,0.000199,2]
[315102338,1708819844084,-401.0588884,0.000199,2]
[315102339,1708819844178,-200.5294442,0.000199,2]
[315102340,1708819844187,-2085.61115878,0.000199,2]
[315102341,1708819844196,-500.0,0.00019997,2]
[315102342,1708819844205,-155.10941439,0.00019998,2]
[315102343,1708819844215,-273.7273831,0.00019998,2]
[315102344,1708819844225,-4697.79543124,0.00019998,2]
[315102345,1708819844235,-621.05516522,0.00019998,2]
[315102346,1708819844244,-823.4,0.00019998,2]
[315102347,1708819844254,-500.0,0.00019999,2]
[315102348,1708819844263,-500.0,0.00019999,2]
[315102349,1708819844272,-175.95696323,0.00019999,2]
[315102350,1708819844281,-823.4,0.00019999,2]
[315102351,1708819844291,-823.4,0.00019999,2]
[315102352,1708819844300,-823.4,0.00019999,2]
[315102353,1708819844311,-823.4,0.00019999,2]
[315102354,1708819844320,-823.4,0.00019999,2]
[315102355,1708819844329,-823.4,0.00019999,2]
[315102356,1708819844339,-823.4,0.00019999,2]
[315102357,1708819844348,-823.4,0.00019999,2]
[315102358,1708819844357,-823.4,0.00019999,2]
[315102359,1708819844367,-823.4,0.00019999,2]
[315102360,1708819844376,-823.4,0.00019999,2]
[315102361,1708819844385,-823.4,0.00019999,2]
[315102362,1708819844395,-823.4,0.00019999,2]
[315102363,1708819844404,-823.4,0.00019999,2]
[315102364,1708819844413,-823.4,0.00019999,2]
[315102365,1708819844422,-823.50029046,0.00019999,2]
[315102366,1708819844432,-188.10839072,0.00019999,2]
[315102367,1708819844443,-608297.76884682,0.0002,2]
[315102368,1708819844582,-1792.69,0.00019543,3]
[315102369,1708819844591,-687619.42208192,0.0002,2]
[315102370,1708819844612,-6939.51565624,0.0002,2]
[315102371,1708819844626,-24884.1446675,0.0002,2]
[315102372,1708819844638,-77916.93359076,0.0002,2]
[315102373,1708819844671,-313.44686763,0.00019454,2]
[315102374,1708819844681,-1792.54769328,0.0002,2]
[315102375,1708819844692,-44380.34727309,0.0002,2]
[315102376,1708819844703,-2574.37319428,0.0002,2]
[315102379,1708819846016,-500.0,0.00019554,2]
[315102380,1708819846027,-500.0,0.00019554,2]
[315102381,1708819846037,-327.11902955,0.00019554,2]
[315102382,1708819846046,-313.44686763,0.00019566,2]
[315102383,1708819846055,-313.44686763,0.00019677,2]
[315102384,1708819846065,-200.5294442,0.000197,2]
[315102385,1708819846074,-27.79179099,0.0001989,2]
[315102387,1708820327484,224.048949,0.00018197,2]
[315102389,1708820377776,9302.0,0.00029885,120]
[315102390,1708820594700,24900.0,0.00017967,2]
[315102391,1708820766464,13528.6646827,0.00017922,2]
[315102392,1708820950097,-677.39959869,0.00018235,2]
[315102393,1708820950116,-154.81422293,0.00018236,2]
[315102394,1708820950136,-167.78617838,0.00018237,2]
[315102395,1708820951120,-56.26277062,0.00018237,2]
[315102396,1708820951140,-1435.62756729,0.0001842,2]
[315102419,1708821032180,-677.39959869,0.00018419,2]
[315102421,1708821032189,-155.30280668,0.0001842,2]
[315102423,1708821032198,-500.0,0.00019178,2]
[315102425,1708821032207,-500.0,0.00019178,2]
[315102427,1708821032216,-500.0,0.00019178,2]
[315102429,1708821032225,-500.0,0.00019178,2]
[315102431,1708821032236,-500.0,0.00019178,2]
[315102433,1708821032244,-415.96199715,0.00019178,2]
[315102435,1708821032253,-500.0,0.00019178,2]
[315102437,1708821032263,-500.0,0.00019178,2]
[315102439,1708821032272,-500.0,0.00019178,2]
[315102441,1708821032281,-501.0634752,0.00019178,2]
[315102443,1708821032290,-500.0,0.00019178,2]
[315102445,1708821032299,-500.0,0.00019178,2]
[315102448,1708821032309,-782.11,0.00019178,2]
[315102451,1708821032318,-500.0,0.00019178,2]
[315102454,1708821032327,-501.25023183,0.00019178,2]
[315102457,1708821032336,-5894.08,0.00019178,2]
[315102460,1708821032346,-500.0,0.00019178,2]
[315102463,1708821032355,-500.0,0.00019178,2]
[315102466,1708821032365,-500.0,0.00019178,2]
[315102469,1708821032374,-500.0,0.00019178,2]
[315102472,1708821032383,-500.0,0.00019178,2]
[315102475,1708821032392,-500.0,0.00019178,2]
[315102478,1708821032401,-571.8,0.00019178,2]
[315102481,1708821032410,-653.43,0.00019178,2]
[315102484,1708821032419,-500.0,0.00019178,2]
[315102487,1708821032428,-3435.59,0.00019178,2]
[315102490,1708821032437,-1532.6,0.00019178,2]
[315102493,1708821032446,-5928.56,0.00019178,2]
[315102495,1708821032455,-909.19,0.00019178,2]
[315102496,1708821032464,-400.04704664,0.00019178,2]
[315102499,1708821032474,-180.870337,0.00019178,2]
[315102500,1708821032488,-166.666666,0.00019178,2]
[315102501,1708821032497,-620.03300727,0.00019275,2]
[315102503,1708821032507,-5952.84,0.00019435,3]
[315102504,1708821032517,-500.0,0.00019441,2]
[315102506,1708821032526,-500.0,0.00019441,2]
[315102507,1708821032536,-875.24,0.00019441,2]
[315102509,1708821032545,-500.0,0.00019441,2]
[315102510,1708821032555,-500.0,0.00019441,2]
[315102511,1708821032564,-500.0,0.00019441,2]
[315102512,1708821032575,-500.0,0.00019441,2]
[315102513,1708821032584,-7060.54,0.00019442,3]
[315102514,1708821032594,-427.89095573,0.00019443,2]
[315102515,1708821032603,-500.0,0.00019443,2]
[315102516,1708821032613,-500.0,0.00019443,2]
[315102517,1708821032622,-500.0,0.00019443,2]
[315102518,1708821032631,-7657.74,0.00019444,2]
[315102519,1708821032641,-500.0,0.00019444,2]
[315102520,1708821032652,-8472.65,0.00019444,3]
[315102521,1708821032661,-10167.17,0.00019445,3]
[315102522,1708821032670,-500.0,0.00019452,2]
[315102523,1708821032680,-500.0,0.00019452,2]
[315102524,1708821032689,-500.0,0.00019452,2]
[315102525,1708821032698,-500.0,0.00019452,2]
[315102526,1708821032707,-782.11,0.00019452,2]
[315102527,1708821032716,-5894.08,0.00019452,2]
[315102528,1708821032725,-500.0,0.00019452,2]
[315102529,1708821032734,-500.0,0.00019452,2]
[315102530,1708821032743,-500.0,0.00019452,2]
[315102531,1708821032753,-500.0,0.00019452,2]
[315102532,1708821032762,-500.0,0.00019452,2]
[315102533,1708821032771,-571.8,0.00019452,2]
[315102534,1708821032780,-653.43,0.00019452,2]
[315102535,1708821032791,-500.96626582,0.00019452,2]
[315102536,1708821032801,-3435.59,0.00019452,2]
[315102537,1708821032810,-1532.6,0.00019452,2]
[315102538,1708821032819,-2958.45689304,0.00019452,2]
[315102569,1708821039851,-1496.43,0.00019178,2]
[315102571,1708821039860,-744.47,0.00019178,2]
[315102573,1708821039869,-500.0,0.00019443,2]
[315102575,1708821039878,-500.0,0.00019443,2]
[315102577,1708821039887,-2970.10310696,0.00019452,2]
[315102579,1708821039896,-909.19,0.00019452,2]
[315102581,1708821039905,-1496.43,0.00019452,2]
[315102583,1708821039914,-744.47,0.00019452,2]
[315102585,1708821039923,-500.0,0.00019454,2]
[315102587,1708821039932,-500.0,0.00019454,2]
[315102589,1708821039941,-500.0,0.00019454,2]
[315102590,1708821039950,-500.49141179,0.00019454,2]
[315102592,1708821039959,-500.0,0.00019454,2]
[315102594,1708821039968,-500.0,0.00019454,2]
[315102596,1708821039978,-501.04972736,0.00019454,2]
[315102598,1708821039987,-500.0,0.00019454,2]
[315102600,1708821039997,-832.26,0.00019454,2]
[315102601,1708821040006,-500.0,0.00019454,2]
[315102602,1708821040015,-505.16096815,0.00019454,2]
[315102603,1708821040024,-1095.24,0.00019454,2]
[315102604,1708821040033,-500.0,0.00019454,2]
[315102605,1708821040043,-500.0,0.00019454,2]
[315102606,1708821040052,-500.0,0.00019454,2]
[315102607,1708821040061,-500.0,0.00019454,2]
[315102608,1708821040070,-500.0,0.00019454,2]
[315102609,1708821040079,-500.0,0.00019454,2]
[315102610,1708821040088,-215.77884278,0.00019454,2]
[315102611,1708821040097,-500.0,0.00019454,2]
[315102612,1708821040107,-500.0,0.00019454,2]
[315102613,1708821040116,-500.0,0.00019454,2]
[315102614,1708821040125,-500.0,0.00019454,2]
[315102615,1708821040135,-501.32633711,0.00019454,2]
[315102616,1708821040144,-500.57831314,0.00019454,2]
[315102617,1708821040153,-500.0,0.00019454,2]
[315102618,1708821040162,-500.73548748,0.00019454,2]
[315102619,1708821040172,-500.0,0.00019454,2]
[315102620,1708821040181,-500.0,0.00019454,2]
[315102621,1708821040190,-500.0,0.00019454,2]
[315102622,1708821040199,-19761.47372025,0.00019455,2]
[315102623,1708821040209,-153.0,0.000195,2]
[315102624,1708821040218,-202.9570719,0.000195,2]
[315102625,1708821040228,-279.1276925,0.000195,2]
[315102626,1708821040237,-200.5294442,0.000195,2]
[315102627,1708821040246,-200.5294442,0.000195,2]
[315102628,1708821040254,-153.0,0.000195,2]
[315102629,1708821040263,-153.0,0.000195,2]
[315102630,1708821040273,-412.6272426,0.000195,2]
[315102631,1708821040281,-200.5294442,0.000195,2]
[315102632,1708821040290,-153.0,0.000195,2]
[315102633,1708821040300,-200.5294442,0.000195,2]
[315102634,1708821040309,-301.8299324,0.000195,2]
[315102635,1708821040319,-153.0,0.000195,2]
[315102636,1708821040328,-200.5294442,0.000195,2]
[315102637,1708821040338,-153.0,0.000195,2]
[315102638,1708821040347,-153.0,0.000195,2]
[315102639,1708821040357,-153.0,0.000195,2]
[315102640,1708821040365,-153.0,0.000195,2]
[315102641,1708821040375,-200.5294442,0.000195,2]
[315102643,1708821040383,-553.34,0.00019541,3]
[315102645,1708821040393,-4960.7,0.00019541,3]
[315102647,1708821040402,-194.47359819,0.0001955,2]
[315102649,1708821040412,-500.0,0.00019551,2]
[315102651,1708821040422,-500.0,0.00019551,2]
[315102653,1708821040432,-593.16625278,0.00019551,2]
[315102655,1708821040441,-500.0,0.00019551,2]
[315102657,1708821040451,-500.0,0.00019551,2]
[315102659,1708821040462,-500.0,0.00019551,2]
[315102661,1708821040473,-591.47816534,0.00019551,2]
[315102663,1708821040484,-500.0,0.00019551,2]
[315102665,1708821040498,-500.0,0.00019551,2]
[315102668,1708821040509,-500.0,0.00019551,2]
[315102670,1708821040519,-500.0,0.00019551,2]
[315102672,1708821040529,-500.0,0.00019551,2]
[315102674,1708821040539,-500.0,0.00019551,2]
[315102676,1708821040549,-500.0,0.00019551,2]
[315102678,1708821040559,-500.0,0.00019551,2]
[315102680,1708821040570,-500.0,0.00019551,2]
[315102681,1708821040581,-500.0,0.00019551,2]
[315102683,1708821040591,-500.0,0.00019551,2]
[315102684,1708821040602,-500.0,0.00019551,2]
[315102686,1708821040612,-500.0,0.00019551,2]
[315102688,1708821040622,-500.0,0.00019551,2]
[315102690,1708821040631,-500.0,0.00019551,2]
[315102691,1708821040640,-500.0,0.00019551,2]
[315102692,1708821040650,-500.0,0.00019551,2]
[315102693,1708821040660,-500.0,0.00019551,2]
[315102694,1708821040670,-500.0,0.00019551,2]
[315102695,1708821040679,-500.0,0.00019551,2]
[315102696,1708821040689,-197.37664967,0.00019551,2]
[315102697,1708821040699,-500.0,0.00019551,2]
[315102698,1708821040709,-500.0,0.00019551,2]
[315102699,1708821040719,-500.0,0.00019551,2]
[315102700,1708821040729,-500.0,0.00019551,2]
[315102701,1708821040739,-500.0,0.00019551,2]
[315102702,1708821040748,-500.0,0.00019551,2]
[315102703,1708821040757,-500.0,0.00019551,2]
[315102704,1708821040766,-500.0,0.00019551,2]
[315102705,1708821040776,-500.0,0.00019551,2]
[315102706,1708821040785,-500.0,0.00019551,2]
[315102707,1708821040794,-500.0,0.00019551,2]
[315102708,1708821040804,-500.0,0.00019551,2]
[315102709,1708821040813,-500.0,0.00019551,2]
[315102710,1708821040822,-500.0,0.00019551,2]
[315102711,1708821040831,-500.0,0.00019551,2]
[315102712,1708821040840,-500.0,0.00019551,2]
[315102713,1708821040849,-500.0,0.00019551,2]
[315102714,1708821040858,-500.0,0.00019551,2]
[315102715,1708821040868,-500.0,0.00019551,2]
[315102716,1708821040877,-500.0,0.00019551,2]
[315102717,1708821040886,-500.0,0.00019551,2]
[315102718,1708821040895,-500.0,0.00019551,2]
[315102719,1708821040904,-500.0,0.00019551,2]
[315102720,1708821040912,-500.0,0.00019551,2]
[315102721,1708821040922,-500.0,0.00019551,2]
[315102722,1708821040932,-500.0,0.00019551,2]
[315102723,1708821040942,-500.0,0.00019551,2]
[315102724,1708821040951,-550.0,0.00019551,2]
[315102725,1708821040960,-500.0,0.00019551,2]
[315102726,1708821040968,-500.0,0.00019551,2]
[315102727,1708821040979,-500.0,0.00019551,2]
[315102728,1708821040988,-500.0,0.00019551,2]
[315102729,1708821040996,-500.0,0.00019551,2]
[315102730,1708821041006,-500.0,0.00019551,2]
[315102731,1708821041015,-500.0,0.00019552,2]
[315102732,1708821041024,-500.0,0.00019552,2]
[315102733,1708821041033,-389.05948452,0.00019552,2]
[315102734,1708821041041,-500.0,0.00019552,2]
[315102735,1708821041050,-503.81354603,0.00019552,2]
[315102736,1708821041059,-500.0,0.00019552,2]
[315102737,1708821041068,-500.0,0.00019552,2]
[315102738,1708821041078,-500.0,0.00019552,2]
[315102739,1708821041087,-500.0,0.00019552,2]
[315102740,1708821041096,-500.0,0.00019552,2]
[315102741,1708821041105,-500.0,0.00019552,2]
[315102742,1708821041114,-500.0,0.00019552,2]
[315102743,1708821041123,-568.97,0.00019552,2]
[315102744,1708821041132,-500.0,0.00019552,2]
[315102745,1708821041141,-500.0,0.00019552,2]
[315102746,1708821041150,-500.0,0.00019552,2]
[315102747,1708821041159,-500.0,0.00019552,2]
[315102748,1708821041168,-500.0,0.00019552,2]
[315102749,1708821041178,-234.46515566,0.00019552,2]
[315102750,1708821041187,-500.0,0.00019552,2]
[315102751,1708821041196,-500.0,0.00019552,2]
[315102752,1708821041205,-500.0,0.00019552,2]
[315102753,1708821041214,-500.0,0.00019552,2]
[315102754,1708821041223,-500.0,0.00019552,2]
[315102755,1708821041232,-500.0,0.00019552,2]
[315102756,1708821041241,-500.0,0.00019552,2]
[315102757,1708821041250,-500.0,0.00019552,2]
[315102758,1708821041259,-500.0,0.00019552,2]
[315102759,1708821041268,-500.0,0.00019552,2]
[315102760,1708821041277,-500.0,0.00019552,2]
[315102761,1708821041286,-266.11925142,0.00019552,2]
[315102762,1708821041295,-500.0,0.00019552,2]
[315102763,1708821041304,-151.0,0.00019552,2]
[315102764,1708821041313,-500.0,0.00019552,2]
[315102765,1708821041322,-500.0,0.00019552,2]
[315102766,1708821041330,-638.44153413,0.00019552,2]
[315102767,1708821041340,-566.56018408,0.00019552,2]
[315102768,1708821041348,-890.85,0.00019552,2]
[315102769,1708821041358,-500.0,0.00019552,2]
[315102770,1708821041366,-500.0,0.00019552,2]
[315102771,1708821041375,-500.0,0.00019552,2]
[315102772,1708821041385,-500.0,0.00019552,2]
[315102773,1708821041394,-500.0,0.00019552,2]
[315102774,1708821041403,-500.0,0.00019552,2]
[315102775,1708821041413,-500.0,0.00019552,2]
[315102776,1708821041422,-492.29549158,0.00019552,2]
[315102777,1708821041431,-500.0,0.00019552,2]
[315102778,1708821041441,-500.0,0.00019552,2]
[315102779,1708821041451,-500.0,0.00019552,2]
[315102780,1708821041460,-500.0,0.00019552,2]
[315102781,1708821041470,-502.20275581,0.00019552,2]
[315102782,1708821041480,-500.0,0.00019552,2]
[315102783,1708821041490,-500.0,0.00019552,2]
[315102784,1708821041500,-500.0,0.00019552,2]
[315102785,1708821041509,-229.85488048,0.00019552,2]
[315102786,1708821041518,-500.0,0.00019552,2]
[315102787,1708821041528,-500.0,0.00019552,2]
[315102788,1708821041538,-500.0,0.00019552,2]
[315102789,1708821041548,-500.0,0.00019552,2]
[315102790,1708821041557,-500.0,0.00019552,2]
[315102791,1708821041567,-526.54483055,0.00019552,2]
[315102792,1708821041577,-500.0,0.00019552,2]
[315102793,1708821041587,-500.0,0.00019552,2]
[315102794,1708821041596,-500.0,0.00019552,2]
[315102795,1708821041606,-500.0,0.00019552,2]
[315102796,1708821041615,-264.45911542,0.00019552,2]
[315102797,1708821041624,-500.0,0.00019552,2]
[315102798,1708821041633,-500.04057493,0.00019552,2]
[315102799,1708821041642,-500.0,0.00019552,2]
[315102800,1708821041651,-355.60770815,0.00019552,2]
[315102801,1708821041661,-500.0,0.00019552,2]
[315102802,1708821041670,-565.40734978,0.00019552,2]
[315102803,1708821041679,-500.0,0.00019552,2]
[315102804,1708821041689,-500.0,0.00019552,2]
[315102805,1708821041699,-500.0,0.00019552,2]
[315102806,1708821041708,-500.0,0.00019552,2]
[315102807,1708821041717,-500.0,0.00019552,2]
[315102808,1708821041727,-500.0,0.00019552,2]
[315102809,1708821041736,-331.48503968,0.00019552,2]
[315102810,1708821041746,-500.0,0.00019552,2]
[315102811,1708821041755,-500.0,0.00019552,2]
[315102812,1708821041765,-500.81811233,0.00019552,2]